bitfinex-derivatives/quotes_ETHF0:USTF0_20241102
["timestamp","ask_amount","ask_price","bid_price","bid_amount"]
[1730563323883,2.63233694,2490.7,2490.6,1.17682]
[1730563324085,2.63233694,2490.7,2490.6,1.71928917]
[1730563327484,2.63233694,2490.7,2490.6,1.17682]
[1730563327685,2.63233694,2490.7,2490.6,1.71940981]
[1730563329788,1.44657043,2490.9,2490.8,0.2811]
[1730563329789,1.72766043,2490.9,2490.8,0.2811]
[1730563330589,1.44657043,2490.9,2490.8,0.2811]
[1730563332088,1.86757043,2491.0,2490.6,0.8957]
[1730563332291,1.86757043,2491.0,2490.9,0.28109]
[1730563332590,2.14865043,2491.0,2490.8,0.28109]
[1730563332787,2.14865043,2491.0,2490.6,0.8957]
[1730563332985,2.14865043,2491.0,2490.8,0.28109]
[1730563333182,2.14865043,2491.0,2490.6,0.8957]
[1730563333387,1.72767043,2490.9,2490.7,0.82370904]
[1730563333577,1.91007043,2490.9,2490.6,0.8957]
[1730563333784,2.19116043,2490.9,2490.8,0.2811]
[1730563334284,1.91007043,2490.9,2490.8,0.2811]
[1730563334983,4.54224802,2490.9,2490.8,0.2811]
[1730563335187,4.82333802,2490.9,2490.8,0.2811]
[1730563335883,4.82333802,2490.9,2490.6,0.4382]
[1730563336088,1.44657043,2490.7,2490.6,0.4382]
[1730563336287,1.44657043,2490.7,2490.6,1.2620891]
[1730563336687,1.89737043,2490.7,2490.6,1.2620891]
[1730563338289,1.89737043,2490.7,2490.6,0.71931]
[1730563338787,1.89737043,2490.7,2490.6,1.26202302]
[1730563339496,2.63217759,2490.9,2490.8,0.2811]
[1730563339795,2.63217759,2490.9,2490.8,0.82368062]
[1730563339995,2.63217759,2490.9,2490.8,0.2811]
[1730563340587,4.07874802,2490.9,2490.8,0.2811]
[1730563342390,4.35983802,2490.9,2490.8,0.2811]
[1730563342792,1.72766043,2490.9,2490.6,0.4382]
[1730563342993,2.10578304,2490.7,2490.6,0.71932]
[1730563343194,2.10578304,2490.7,2490.6,1.26172596]
[1730563348201,2.10578304,2490.8,2490.7,0.28111]
[1730563348401,2.10578304,2490.8,2490.7,0.82351596]
[1730563348604,2.6322288,2490.9,2490.8,0.2811]
[1730563348798,3.3343088,2491.0,2490.6,0.4382]
[1730563349004,3.3343088,2491.0,2490.9,0.28109]
[1730563349403,0.70208,2491.0,2490.9,0.28109]
[1730563350300,0.70208,2491.0,2490.6,0.4382]
[1730563350501,2.63229523,2490.9,2490.8,0.28109]
[1730563352197,2.63229523,2490.9,2490.8,0.82313669]
[1730563352904,3.05329523,2491.0,2490.9,0.28109]
[1730563353904,3.05329523,2491.0,2490.9,0.82307621]
[1730563354103,3.05329523,2491.0,2490.9,0.28109]
[1730563358998,0.421,2491.0,2490.9,0.82298925]
[1730563359203,2.52641562,2491.0,2490.9,0.82298925]
[1730563359403,0.421,2491.0,2490.9,0.82298925]
[1730563359901,0.421,2491.0,2490.9,0.28109]
[1730563360318,3.05329523,2491.0,2490.9,0.28109]
[1730563360511,0.421,2491.0,2490.9,0.28109]
[1730563361815,2.52639505,2491.0,2490.9,0.8226693]
[1730563362214,0.421,2491.0,2490.9,0.28109]
[1730563362413,0.421,2491.0,2490.9,0.82255861]
[1730563362610,0.421,2491.0,2490.9,0.28109]
[1730563363518,0.421,2491.0,2490.9,0.82251553]
[1730563364309,2.63229523,2491.1,2490.9,0.54142553]
[1730563364510,2.10590971,2491.0,2490.8,3.2078]
[1730563364715,2.10610133,2491.0,2490.9,0.70539]
[1730563364910,2.10610133,2491.0,2490.9,1.69781089]
[1730563366009,2.63229523,2491.1,2490.9,6.29714509]
[1730563366010,2.10610133,2491.1,2490.9,6.29714509]
[1730563366214,2.10610133,2491.2,2491.1,0.28107]
[1730563366414,2.10610133,2491.2,2491.1,3.74912089]
[1730563366622,2.52850133,2491.3,2491.2,0.28105]
[1730563366811,2.52850133,2491.3,2491.2,0.82237089]
[1730563366812,0.4224,2491.3,2491.2,0.82237089]
[1730563367121,2.52780203,2491.3,2491.2,0.82237089]
[1730563367325,2.52780203,2491.3,2491.2,0.8219809]
[1730563368021,2.52780203,2491.3,2491.2,0.28105]
[1730563368723,2.52780203,2491.3,2491.2,0.82198506]
[1730563369223,2.52780203,2491.3,2491.2,0.28105]
[1730563372830,0.4224,2491.3,2491.2,0.28105]
[1730563374028,2.10540203,2491.5,2491.2,6.00140673]
[1730563374221,2.10540203,2491.5,2491.4,0.28103]
[1730563374527,2.10540203,2491.5,2491.3,1.44657043]
[1730563374528,0.8872,2491.6,2491.5,0.28102]
[1730563374926,2.99048178,2491.6,2491.5,0.28102]
[1730563375335,2.10328178,2491.8,2491.5,5.46017043]
[1730563375623,2.10328178,2491.9,2491.8,0.28099]
[1730563376026,2.55588178,2492.0,2491.9,0.28098]
[1730563376228,2.55420099,2492.0,2491.9,0.28098]
[1730563376432,0.4526,2492.0,2491.9,0.28098]
[1730563381138,0.73356,2492.0,2491.9,0.28098]
[1730563381335,0.28101,2491.6,2491.2,0.861]
[1730563381535,1.3137,2491.5,2491.4,0.28102]
[1730563381730,1.3137,2491.5,2491.4,1.72759043]
[1730563381930,0.4302,2491.5,2491.4,1.72759043]
[1730563383943,0.4302,2491.5,2491.4,5.74119043]
[1730563384136,0.4302,2491.5,2491.4,1.72759043]
[1730563385443,0.8835,2491.8,2491.7,0.281]
[1730563385640,0.429,2491.8,2491.7,0.281]
[1730563386142,0.429,2491.8,2491.7,0.701]
[1730563386343,0.865,2491.8,2491.7,0.701]
[1730563386550,1.2907,2491.8,2491.7,0.701]
[1730563391243,0.28103,2491.5,2491.4,0.28103]
[1730563391549,5.3043,2491.8,2491.5,0.28101]
[1730563391550,0.28101,2491.6,2491.5,0.28101]
[1730563391747,1e-05,2491.6,2491.5,0.28101]
[1730563392048,1e-05,2491.6,2491.3,3.2078]
[1730563392049,0.28103,2491.5,2491.4,0.28103]
[1730563392447,0.72633,2491.5,2491.4,0.28103]
[1730563392950,0.4453,2491.5,2491.4,0.28103]
[1730563394944,0.4453,2491.5,2491.4,0.73673]
[1730563395349,1e-05,2491.6,2491.4,0.4557]
[1730563395552,0.28102,2491.6,2491.5,0.28102]
[1730563396047,0.28102,2491.6,2491.4,0.73673]
[1730563396249,0.28103,2491.6,2491.4,0.73673]
[1730563396552,0.28102,2491.5,2491.4,0.28103]
[1730563396754,1.72760043,2491.6,2491.4,0.28102]
[1730563396953,1.44658043,2491.6,2491.5,0.28102]
[1730563397247,0.28102,2491.6,2491.5,0.28102]
[1730563397448,0.28102,2491.6,2491.4,0.28102]
[1730563398849,0.28102,2491.6,2491.5,0.28102]
[1730563400254,4.01361,2491.6,2491.1,3.2078]
[1730563400450,4.01361,2491.6,2491.0,0.4547]
[1730563400451,0.28104,2491.4,2491.0,1.7358]
[1730563400646,0.4257,2491.3,2491.0,1.7358]
[1730563400848,0.8637,2491.3,2491.2,0.28105]
[1730563401445,2.38263099,2491.6,2491.2,0.28105]
[1730563401646,2.38263099,2491.6,2491.5,0.28102]
[1730563401647,0.85541,2491.6,2491.5,0.28102]
[1730563403045,0.42571,2491.6,2491.5,0.28102]
[1730563403356,1e-05,2491.6,2491.5,0.28102]
[1730563403558,1e-05,2491.6,2491.5,5.74119043]
[1730563403759,1e-05,2491.6,2491.5,6.60219043]
[1730563404859,1e-05,2491.6,2491.5,7.14144792]
[1730563405055,0.4384,2492.3,2491.5,8.16487929]
[1730563405259,0.71933,2492.3,2492.2,0.28094]
[1730563405762,0.4384,2492.3,2492.2,0.28094]
[1730563406260,0.71933,2492.3,2492.2,0.28094]
[1730563406663,0.4384,2492.3,2492.2,0.28094]
[1730563409261,3.6619,2492.4,2492.3,0.28093]
[1730563413260,0.4541,2492.4,2492.3,0.28093]
[1730563418262,0.4541,2492.4,2492.1,0.4629]
[1730563418465,0.73502,2492.4,2492.3,0.28093]
[1730563418868,0.4541,2492.4,2492.3,0.28093]
[1730563422970,0.73502,2492.4,2492.3,0.28093]
[1730563423366,0.4541,2492.4,2492.3,0.28093]
[1730563427469,3.99757142,2492.7,2492.3,0.28093]
[1730563427470,2.10160099,2492.7,2492.3,5.88857043]
[1730563427677,0.8651,2493.0,2492.9,0.28086]
[1730563427878,0.8651,2493.0,2492.9,1.72743043]
[1730563428589,5.30940099,2493.2,2492.9,1.44657043]
[1730563428779,5.74600099,2493.2,2493.1,0.28084]
[1730563429083,3.6444,2493.2,2493.1,0.28084]
[1730563429279,0.4366,2493.2,2493.1,0.28084]
[1730563429776,0.4366,2493.2,2493.1,0.74434]
[1730563431574,0.8687,2493.5,2493.4,0.28081]
[1730563431778,1.1495,2493.5,2493.3,0.28081]
[1730563432475,0.8687,2493.5,2493.4,0.28081]
[1730563432875,1.3285,2493.5,2493.4,0.28081]
[1730563433081,1.3285,2493.5,2493.2,1.44657043]
[1730563433380,1.3285,2493.5,2493.3,0.28081]
[1730563433577,1.6093,2493.5,2493.3,0.28081]
[1730563433875,4.0104,2493.4,2493.1,0.28083]
[1730563434076,3.05587043,2493.5,2493.2,0.28082]
[1730563434378,3.05587043,2493.5,2493.3,0.28082]
[1730563434674,1.6093,2493.5,2493.3,0.28082]
[1730563436081,1.3285,2493.5,2493.2,1.44657043]
[1730563436265,1.3285,2493.5,2493.4,0.28081]
[1730563436473,0.4598,2493.5,2493.4,0.28081]
[1730563436979,0.4598,2493.5,2493.4,0.4297]
[1730563437367,0.4598,2493.5,2493.4,0.71051]
[1730563439777,0.4598,2493.5,2493.3,0.28081]
[1730563439778,2.18717043,2493.5,2493.3,0.28081]
[1730563440079,0.4288,2493.4,2493.3,0.28082]
[1730563440879,0.4288,2493.4,2493.2,1.44657043]
[1730563441072,0.4288,2493.4,2493.3,0.28082]
[1730563441272,0.4288,2493.4,2493.2,1.44657043]
[1730563441486,0.4288,2493.4,2493.3,0.28082]
[1730563441784,0.4288,2493.4,2493.2,1.44657043]
[1730563441785,0.70961,2493.4,2493.2,1.72739043]
[1730563442176,0.4288,2493.4,2493.3,0.28082]
[1730563443085,0.70961,2493.4,2493.2,1.72739043]
[1730563443283,0.4598,2493.5,2493.2,1.44657043]
[1730563443581,0.7406,2493.5,2493.3,0.28081]
[1730563443881,0.4598,2493.5,2493.2,1.44657043]
[1730563444081,0.28081,2493.4,2493.2,1.72739043]
[1730563444583,0.7406,2493.5,2493.3,0.28081]
[1730563444980,0.4598,2493.5,2493.3,1.44657043]
[1730563445185,0.4598,2493.5,2493.4,0.69911]
[1730563447285,0.4404,2493.8,2493.7,0.28077]
[1730563447476,0.28075,2493.9,2493.7,1.72734043]
[1730563448190,0.4427,2494.0,2493.7,1.44657043]
[1730563448377,0.4427,2494.0,2493.9,0.28075]
[1730563448783,0.4427,2494.0,2493.9,0.71175]
[1730563451182,0.4543,2494.4,2493.9,4.4406]
[1730563451382,0.4543,2494.4,2494.3,1.72728043]
[1730563451990,0.4543,2494.4,2494.3,1.44657043]
[1730563452188,0.4543,2494.4,2494.3,1.72728043]
[1730563453581,0.4543,2494.4,2494.3,1.44657043]
[1730563453783,0.73499,2494.4,2494.2,2.15048043]
[1730563454279,0.73499,2494.4,2494.2,1.86977043]
[1730563454476,0.4543,2494.4,2494.2,1.86977043]
[1730563454682,4.0088,2494.3,2493.8,1.44657043]
[1730563454889,0.28075,2494.0,2493.7,0.28077]
[1730563455082,0.4542,2493.9,2493.8,1.44657043]
[1730563455283,0.9045,2493.9,2493.8,1.44657043]
[1730563456082,1.18525,2493.9,2493.8,1.44657043]
[1730563458984,0.9045,2493.9,2493.8,1.44657043]
[1730563459487,1.18525,2493.9,2493.8,1.44657043]
[1730563459689,0.4542,2493.9,2493.8,1.44657043]
[1730563459880,0.4542,2493.9,2493.8,1.72733043]
[1730563460191,0.4211,2494.3,2493.8,1.72732043]
[1730563460390,0.28073,2494.1,2493.9,1.89777043]
[1730563460883,4.1106,2494.2,2493.9,1.89777043]
[1730563461085,0.28074,2494.0,2493.9,0.4512]
[1730563461387,0.28079,2493.6,2493.4,0.2808]
[1730563461596,0.905,2493.5,2493.4,1.44657043]
[1730563461889,0.905,2493.5,2493.4,1.72738043]
[1730563462091,0.905,2493.5,2493.4,1.44657043]
[1730563462288,0.905,2493.5,2493.4,1.72738043]
[1730563462495,0.905,2493.5,2493.4,1.44657043]
[1730563462695,0.905,2493.5,2493.2,0.4512]
[1730563462895,0.28083,2493.2,2493.1,1.44657043]
[1730563463092,4.1128,2493.5,2493.0,1.44657043]
[1730563463093,0.4325,2493.4,2493.0,1.44657043]
[1730563463296,0.28084,2493.1,2493.0,1.44657043]
[1730563463483,0.4325,2493.4,2493.0,1.44657043]
[1730563463683,0.4325,2493.4,2493.1,1.44657043]
[1730563463891,4.1128,2493.5,2493.3,1.44657043]
[1730563464087,1.1858,2493.5,2493.4,1.44657043]
[1730563464702,5.1962,2493.5,2493.4,1.44657043]
[1730563464885,5.1962,2493.5,2493.2,1.72739043]
[1730563465091,1.1858,2493.5,2493.3,0.28082]
[1730563465385,1.1858,2493.5,2493.2,1.44657043]
[1730563465386,0.905,2493.5,2493.2,1.44657043]
[1730563465587,0.905,2493.5,2493.3,0.4223]
[1730563465588,0.28081,2493.4,2493.3,0.4223]
[1730563466292,4.0104,2493.4,2493.1,1.44657043]
[1730563466491,0.28083,2493.2,2493.1,1.44657043]
[1730563466687,4.1128,2493.5,2493.1,1.44657043]
[1730563466889,0.28083,2493.2,2493.1,1.44657043]
[1730563467191,0.28083,2493.3,2493.1,1.44657043]
[1730563467391,4.1128,2493.5,2493.1,1.44657043]
[1730563467392,0.28083,2493.2,2493.1,1.44657043]
[1730563467591,1.44657043,2493.3,2492.9,3.2078]
[1730563467785,4.71244,2493.4,2492.7,0.70318]
[1730563467786,0.28087,2492.9,2492.7,0.70318]
[1730563467986,1.44657043,2493.0,2492.7,0.4223]
[1730563468188,0.71727,2492.8,2492.7,0.4223]
[1730563468395,0.28086,2493.0,2492.8,0.28087]
[1730563468596,3.6425,2493.1,2492.7,0.4223]
[1730563468791,0.28087,2492.8,2492.7,0.4223]
[1730563474811,0.70222,2492.7,2491.6,1.0380801]
[1730563475100,3.48877,2492.0,2491.7,0.28099]
[1730563475300,3.2078,2492.0,2491.5,0.4467]
[1730563475507,0.73407,2492.0,2491.7,0.28099]
[1730563475809,0.4531,2492.0,2491.7,0.28099]
[1730563475994,0.4531,2492.0,2491.5,0.4467]
[1730563476196,3.13145618,2491.7,2491.2,0.8861]
[1730563476392,0.28101,2491.6,2491.3,0.28104]
[1730563476906,3.13145618,2491.7,2491.2,0.8861]
[1730563477106,0.28101,2491.6,2491.3,0.28104]
[1730563477704,0.28102,2491.5,2491.2,1.16715]
[1730563478105,3.55345618,2491.7,2491.2,1.16715]
[1730563478106,3.55345618,2491.7,2491.2,0.8861]
[1730563478395,0.28103,2491.5,2491.2,1.16715]
[1730563478604,0.28103,2491.5,2491.2,0.8861]
[1730563478808,0.28103,2491.5,2491.3,0.28104]
[1730563479010,0.28103,2491.5,2491.2,0.8861]
[1730563479219,0.28105,2491.3,2491.1,0.4467]
[1730563479509,0.28105,2491.2,2491.1,0.4467]
[1730563479716,0.28107,2491.1,2490.9,0.867]
[1730563480614,3.41251618,2491.2,2490.9,1.14809]
[1730563480805,0.28107,2491.1,2490.9,0.867]
[1730563481010,6.33925618,2491.2,2490.7,0.4496]
[1730563481312,6.62031618,2491.2,2490.9,0.28108]
[1730563481516,6.62031618,2491.2,2490.7,0.4496]
[1730563481517,0.28107,2491.1,2490.8,0.28109]
[1730563481905,6.62031618,2491.2,2490.9,0.28109]
[1730563482113,6.33925618,2491.2,2491.0,0.28107]
[1730563482321,3.2078,2491.2,2490.7,0.4496]
[1730563482509,0.72374,2491.4,2491.1,0.28107]
[1730563482904,0.72374,2491.4,2491.0,0.28107]
[1730563482905,0.28104,2491.3,2491.0,0.28107]
[1730563483307,0.28104,2491.3,2490.9,0.28108]
[1730563483513,0.28106,2491.2,2490.9,0.28108]
[1730563483817,0.28106,2491.2,2491.0,0.28108]
[1730563484917,3.2078,2491.3,2490.7,0.4496]
[1730563485517,3.48885,2491.3,2491.0,0.28108]
[1730563486317,0.28106,2491.2,2490.9,0.28108]
[1730563486516,3.2078,2491.3,2490.7,0.4496]
[1730563486721,3.48885,2491.3,2491.0,0.28107]
[1730563487021,0.28106,2491.2,2491.0,0.28107]
[1730563487725,0.28106,2491.2,2490.9,0.28108]
[1730563487918,0.28106,2491.2,2490.7,0.4496]
[1730563488318,3.2078,2491.3,2490.7,0.4496]
[1730563488518,0.72374,2491.4,2490.7,0.4496]
[1730563488519,0.72373,2491.4,2491.2,0.28105]
[1730563488720,0.4427,2491.4,2491.2,0.28105]
[1730563488922,0.4427,2491.4,2490.8,0.70276]
[1730563489222,0.4427,2491.4,2491.3,0.28104]
[1730563490322,7.04226618,2491.7,2491.4,0.28103]
[1730563490523,6.76125618,2491.7,2490.9,0.70273]
[1730563490819,0.28102,2491.6,2491.3,0.28104]
[1730563491124,0.28103,2491.5,2491.3,0.28104]
[1730563491318,0.28103,2491.5,2491.2,0.28105]
[1730563491515,0.28103,2491.5,2491.3,0.70924]
[1730563493329,6.76125618,2491.7,2490.8,3.91056]
[1730563493330,3.13145618,2491.4,2490.8,3.91056]
[1730563493625,3.13145618,2491.4,2490.6,2.44961]
[1730563493626,0.4317,2491.3,2491.2,0.28105]
[1730563494020,0.4317,2491.3,2491.1,0.28106]
[1730563494220,0.4317,2491.3,2491.2,0.28105]
[1730563494631,0.4317,2491.3,2490.9,0.4217]
[1730563494928,0.71275,2491.3,2491.1,0.28106]
[1730563495426,0.28107,2491.1,2490.9,0.70278]
[1730563495629,3.13145618,2491.2,2490.9,0.70278]
[1730563495630,3.41251618,2491.2,2491.0,0.28107]
[1730563495830,3.41251618,2491.2,2491.1,0.28107]
[1730563496131,3.41251618,2491.2,2491.0,0.28107]
[1730563496529,3.41251618,2491.2,2491.0,0.28108]
[1730563496830,3.13145618,2491.2,2491.1,0.28107]
[1730563497225,3.13145618,2491.2,2490.9,0.4217]
[1730563497532,3.13145618,2491.2,2491.1,0.28107]
[1730563497730,0.71275,2491.3,2491.1,0.28107]
[1730563497923,0.4317,2491.3,2491.2,0.28105]
[1730563498839,3.48881,2491.6,2491.4,0.28103]
[1730563499128,0.4477,2491.5,2491.4,0.28103]
[1730563500929,3.2078,2491.6,2491.1,1.56456]
[1730563501134,0.4439,2491.5,2491.4,0.28103]
[1730563501329,0.72492,2491.5,2491.3,0.28104]
[1730563501538,3.85638618,2491.5,2491.3,0.28104]
[1730563502023,3.57535618,2491.5,2491.4,0.28103]
[1730563503731,3.85637618,2491.5,2491.3,0.28104]
[1730563504330,3.85637618,2491.5,2491.4,0.28103]
[1730563504733,3.57535618,2491.5,2491.1,0.8619]
[1730563504929,3.85637618,2491.5,2491.4,0.28103]
[1730563505122,3.57535618,2491.5,2491.4,0.28103]
[1730563505636,3.85638618,2491.5,2491.3,0.28103]
[1730563505823,0.28104,2491.4,2491.2,0.28105]
[1730563506223,3.57535618,2491.5,2491.1,0.4379]
[1730563506224,4.01535618,2491.5,2491.1,0.4379]
[1730563506431,4.29637618,2491.5,2491.3,0.28103]
[1730563507925,4.01535618,2491.5,2491.4,0.28103]
[1730563508132,3.13145618,2491.5,2491.4,0.28103]
[1730563508928,4.01005618,2491.7,2491.1,1.14056]
[1730563509127,0.28101,2491.6,2491.4,0.28102]
[1730563509541,3.85242618,2492.0,2491.8,0.28098]
[1730563509730,0.4312,2491.9,2491.8,0.28098]
[1730563510241,3.13145618,2492.4,2491.8,4.71526]
[1730563510444,3.13145618,2492.4,2492.3,0.28093]
[1730563510738,3.13145618,2492.4,2491.9,2.04865]
[1730563510739,3.41237618,2492.4,2492.2,0.28094]
[1730563511235,3.13145618,2492.4,2492.1,0.28094]
[1730563511435,3.13145618,2492.2,2492.1,0.28095]
[1730563511630,3.41238618,2492.4,2492.2,0.28094]
[1730563512326,3.41238618,2492.4,2491.9,0.8937]
[1730563512327,3.13145618,2492.4,2491.9,0.8937]
[1730563512635,3.13145618,2492.4,2491.9,0.73017]
[1730563512636,0.28094,2492.2,2491.9,0.73017]
[1730563512830,3.13145618,2492.4,2491.9,0.4492]
[1730563513030,0.28094,2492.2,2492.0,0.28096]
[1730563514737,3.41238618,2492.4,2492.1,0.28094]
[1730563515342,3.41238618,2492.4,2491.9,0.4492]
[1730563515343,3.13145618,2492.4,2491.9,0.4492]
[1730563515544,0.28094,2492.2,2491.9,0.73017]
[1730563515844,0.28096,2492.1,2491.9,0.73017]
[1730563516036,0.4418,2492.0,2491.9,0.73017]
[1730563516337,0.4418,2492.0,2491.9,0.73018]
[1730563518146,7.58605618,2492.0,2491.5,3.6496]
[1730563518342,3.2078,2491.9,2491.5,3.2078]
[1730563518651,2.09762585,2492.1,2491.5,3.2078]
[1730563518840,3.2078,2492.3,2492.1,0.28095]
[1730563519047,3.48873,2492.3,2492.1,0.28095]
[1730563519339,0.28093,2492.3,2492.1,0.28095]
[1730563519646,6.09708203,2492.4,2492.2,0.28094]
[1730563519843,6.37800203,2492.4,2492.2,0.28094]
[1730563520148,3.99945618,2492.4,2492.2,0.28093]
[1730563520343,0.868,2492.4,2491.8,0.875]
[1730563520644,0.425,2492.4,2492.3,0.28093]
[1730563523748,2.09762585,2492.6,2492.5,0.28091]
[1730563524044,6.02714817,2492.8,2492.6,0.2809]
[1730563524045,5.50996203,2492.8,2492.6,0.2809]
[1730563524250,3.41233618,2492.8,2492.6,0.2809]
[1730563524438,3.41233618,2492.8,2492.5,0.2809]
[1730563524636,0.28089,2492.7,2492.5,0.2809]
[1730563525943,0.4519,2492.9,2492.4,0.4461]
[1730563526140,0.4519,2492.9,2492.5,0.28091]
[1730563526339,0.4519,2492.9,2492.8,0.28087]
[1730563527037,0.4519,2492.9,2492.7,0.28088]
[1730563527237,0.4519,2492.9,2492.5,0.28091]
[1730563527439,0.4519,2492.9,2492.4,0.4461]
[1730563527839,0.4519,2492.9,2492.8,0.28087]
[1730563529545,0.4519,2492.9,2492.7,0.4223]
[1730563529744,0.28088,2492.8,2492.5,0.2809]
[1730563529943,0.28088,2492.8,2492.6,0.28089]
[1730563530138,0.28088,2492.8,2492.4,1.7444]
[1730563530346,0.28088,2492.8,2492.5,0.2809]
[1730563530547,0.28088,2492.8,2492.6,0.28089]
[1730563533951,3.94057,2492.9,2492.7,0.28088]
[1730563534153,3.6597,2492.9,2492.4,0.8684]
[1730563534341,0.28087,2492.8,2492.6,0.28089]
[1730563535750,0.73277,2492.9,2492.7,0.28088]
[1730563536057,0.4317,2493.1,2492.5,0.70228]
[1730563536243,0.4241,2493.2,2493.0,0.28085]
[1730563537054,0.4241,2493.2,2492.8,0.4468]
[1730563537251,0.4241,2493.2,2493.1,0.28084]
[1730563538249,3.2078,2493.5,2492.9,0.463]
[1730563538444,0.424,2493.4,2493.3,0.28082]
[1730563539055,0.424,2493.4,2492.9,1.16515]
[1730563539356,0.424,2493.4,2492.9,0.463]
[1730563539552,0.424,2493.4,2493.3,0.28082]
[1730563541449,0.424,2493.4,2493.0,0.70212]
[1730563541450,3.48858,2493.7,2492.9,4.29660618]
[1730563541761,0.73068,2493.7,2493.4,0.2808]
[1730563545961,0.73068,2493.7,2493.4,0.28081]
[1730563546159,0.28079,2493.6,2493.4,0.28081]
[1730563546863,0.2808,2493.5,2493.2,0.28082]
[1730563547064,3.4886,2493.5,2492.9,3.6708]
[1730563547359,0.28082,2493.3,2493.0,1.15684]
[1730563547665,0.4529,2493.2,2493.1,0.28084]
[1730563548757,0.4529,2493.2,2492.9,3.6708]
[1730563549261,0.4529,2493.2,2493.0,0.28085]
[1730563549473,0.73373,2493.2,2493.0,0.28085]
[1730563549760,0.4529,2493.2,2493.0,0.28085]
[1730563550066,0.73373,2493.2,2493.0,0.28085]
[1730563550267,0.28085,2493.1,2492.9,3.95166]
[1730563550567,0.4529,2493.2,2492.9,3.6708]
[1730563550761,0.4529,2493.2,2492.8,0.4468]
[1730563550762,0.28085,2493.1,2492.8,0.72767]
[1730563550960,0.28085,2493.1,2492.9,0.28086]
[1730563551160,0.70625,2493.0,2492.8,0.72767]
[1730563552262,0.28086,2492.9,2492.8,0.4468]
[1730563552460,0.4254,2493.0,2492.5,0.876]
[1730563552762,0.4254,2493.0,2492.5,0.4294]
[1730563552763,0.28088,2492.8,2492.5,0.4294]
[1730563553059,3.13145618,2492.9,2492.5,0.4294]
[1730563553060,0.4567,2492.7,2492.6,0.28089]
[1730563556269,0.4567,2492.7,2492.5,0.4294]
[1730563556270,0.73759,2492.7,2492.5,0.7103]
[1730563557156,0.4567,2492.7,2492.5,0.7103]
[1730563557367,0.73759,2492.7,2492.5,0.71031]
[1730563557662,0.4567,2492.7,2492.5,0.71031]
[1730563557969,0.4567,2492.7,2492.5,0.2809]
[1730563558171,0.4567,2492.7,2492.4,0.4597]
[1730563558371,0.4567,2492.7,2492.4,0.74061]
[1730563558671,0.4529,2492.6,2492.4,0.74061]
[1730563558869,0.4529,2492.6,2492.4,0.4597]
[1730563559075,0.4529,2492.6,2492.5,0.28091]
[1730563559567,0.4529,2492.6,2492.4,0.4597]
[1730563559773,0.4529,2492.6,2492.4,0.74061]
[1730563560067,0.4529,2492.6,2492.4,0.4597]
[1730563560268,0.73381,2492.6,2492.4,0.4597]
[1730563560462,0.4529,2492.6,2492.4,0.4597]
[1730563560661,0.7338,2492.6,2492.4,0.74062]
[1730563560870,0.4529,2492.6,2492.4,0.74062]
[1730563561465,0.4529,2492.6,2492.5,0.28091]
[1730563561772,0.4529,2492.6,2492.4,0.4597]
[1730563561773,0.4529,2492.6,2492.4,0.74061]
[1730563562768,0.4529,2492.6,2492.5,0.28091]
[1730563562968,0.4529,2492.6,2492.4,0.4597]
[1730563563274,0.7338,2492.6,2492.4,0.74062]
[1730563563469,0.4529,2492.6,2492.4,0.74062]
[1730563565067,0.7338,2492.6,2492.4,0.74062]
[1730563565571,0.28095,2492.2,2491.9,0.28097]
[1730563565766,0.28095,2492.1,2491.9,0.28097]
[1730563565970,0.28097,2492.0,2491.8,0.28098]
[1730563566168,0.4626,2492.1,2491.7,0.8883]
[1730563566169,0.74356,2492.1,2491.7,0.8883]
[1730563566484,0.4626,2492.1,2491.8,0.28098]
[1730563566777,0.74356,2492.1,2491.9,0.28097]
[1730563569979,0.74356,2492.1,2491.8,0.28098]
[1730563570370,0.74356,2492.1,2491.7,0.8883]
[1730563570673,0.28098,2491.9,2491.7,1.16929]
[1730563570974,0.28097,2492.0,2491.8,0.28098]
[1730563571877,0.28098,2491.9,2491.7,1.16929]
[1730563572067,0.4626,2492.1,2491.7,0.8883]
[1730563572272,0.4626,2492.1,2492.0,0.28096]
[1730563572768,2.61481199,2492.4,2491.7,4.72224618]
[1730563572769,2.09762585,2492.4,2491.7,4.72224618]
[1730563572974,0.28093,2492.4,2492.2,0.28094]
[1730563573275,0.4357,2492.5,2492.4,0.28092]
[1730563573482,0.28092,2492.4,2492.3,0.4579]
[1730563573974,0.71661,2492.5,2492.3,0.4579]
[1730563574480,0.71661,2492.5,2492.3,0.73883]
[1730563574669,0.71661,2492.5,2492.3,0.4579]
[1730563575377,0.28092,2492.4,2492.3,0.4579]
[1730563575767,0.28096,2492.1,2491.9,0.28097]
[1730563575970,0.28098,2491.9,2491.6,0.4481]
[1730563576276,0.281,2491.8,2491.5,3.94061]
[1730563576980,3.2078,2491.9,2491.5,3.6596]
[1730563577170,3.48878,2491.9,2491.7,0.28099]
[1730563578076,0.28099,2491.8,2491.6,0.28101]
[1730563579176,3.2078,2491.9,2491.5,0.4518]
[1730563579472,3.48878,2491.9,2491.6,0.28101]
[1730563579678,3.48878,2491.9,2491.7,0.28099]
[1730563580383,0.281,2491.8,2491.5,0.4518]
[1730563580677,3.48878,2491.9,2491.7,0.28099]
[1730563581082,3.48878,2491.9,2491.8,0.28099]
[1730563581083,3.2078,2491.9,2491.8,0.28099]
[1730563581382,3.48878,2491.9,2491.7,0.28099]
[1730563581579,3.48878,2491.9,2491.6,0.281]
[1730563581580,3.2078,2491.9,2491.6,0.281]
[1730563581779,1.17417,2492.0,2491.7,0.28099]
[1730563581982,0.28098,2491.9,2491.7,0.28099]
[1730563582178,4.101,2492.0,2491.5,0.4518]
[1730563582487,4.38197,2492.0,2491.7,0.28099]